[Event "Late-Titled-Tuesday-Blitz-February-13-2024"]
[Site "Chess.com"]
[Date "2024.02.13"]
[Round "4"]
[White "AsaHoffmann"]
[Black "GaiozNigalidze"]
[Result "1/2-1/2"]
[WhiteElo "2431"]
[BlackElo "2669"]
[TimeControl "180+1"]
[EndTime "14:39:19 PST"]
[Termination "Game drawn by repetition"]

1. d4 {[%clk 0:02:54.6]} 1... Nf6 {[%clk 0:02:59]} 2. Bg5 {[%clk 0:02:53.8]}
2... e6 {[%clk 0:02:56.6]} 3. Nd2 {[%clk 0:02:53.3]} 3... h6 {[%clk 0:02:54.7]}
4. Bh4 {[%clk 0:02:52.9]} 4... d5 {[%clk 0:02:52.8]} 5. e3 {[%clk 0:02:52.8]}
5... Be7 {[%clk 0:02:46.1]} 6. Bd3 {[%clk 0:02:52.4]} 6... b6 {[%clk 0:02:46.1]}
7. f4 {[%clk 0:02:51.8]} 7... Bb7 {[%clk 0:02:45.1]} 8. Ngf3 {[%clk 0:02:51.3]}
8... Ne4 {[%clk 0:02:44.4]} 9. Bxe7 {[%clk 0:02:49.6]} 9... Qxe7 {[%clk
0:02:44]} 10. Bxe4 {[%clk 0:02:49.4]} 10... dxe4 {[%clk 0:02:43.7]} 11. Ne5
{[%clk 0:02:49.5]} 11... Nd7 {[%clk 0:02:40.7]} 12. O-O {[%clk 0:02:48.9]} 12...
Nxe5 {[%clk 0:02:35.4]} 13. fxe5 {[%clk 0:02:48.4]} 13... Qg5 {[%clk 0:02:32.6]}
14. Rf4 {[%clk 0:02:46.5]} 14... O-O-O {[%clk 0:02:29]} 15. Nxe4 {[%clk
0:02:35.2]} 15... Qg6 {[%clk 0:02:22.1]} 16. Rg4 {[%clk 0:02:25]} 16... Qh7
{[%clk 0:02:15.7]} 17. Nf2 {[%clk 0:02:18.5]} 17... h5 {[%clk 0:02:14.3]} 18.
Rf4 {[%clk 0:02:14.9]} 18... g5 {[%clk 0:02:14.1]} 19. Rf6 {[%clk 0:02:14.2]}
19... g4 {[%clk 0:02:12]} 20. Qd3 {[%clk 0:02:07.8]} 20... Qg7 {[%clk
0:02:08.7]} 21. Rf1 {[%clk 0:02:06.6]} 21... g3 {[%clk 0:02:03.9]} 22. hxg3
{[%clk 0:01:53.8]} 22... h4 {[%clk 0:02:02]} 23. g4 {[%clk 0:01:51.7]} 23... h3
{[%clk 0:01:58.7]} 24. e4 {[%clk 0:01:42.2]} 24... hxg2 {[%clk 0:01:51.8]} 25.
Kxg2 {[%clk 0:01:39.3]} 25... Rdg8 {[%clk 0:01:44.7]} 26. Qf3 {[%clk 0:01:35.2]}
26... Rh4 {[%clk 0:01:13.5]} 27. Rh1 {[%clk 0:01:25.4]} 27... Rxh1 {[%clk
0:01:02.1]} 28. Kxh1 {[%clk 0:01:24.7]} 28... Rh8+ {[%clk 0:00:55.9]} 29. Kg2
{[%clk 0:01:24.7]} 29... Qh7 {[%clk 0:00:52.2]} 30. Kf1 {[%clk 0:01:15.9]} 30...
Ba6+ {[%clk 0:00:40.2]} 31. Ke1 {[%clk 0:01:13.7]} 31... Qh2 {[%clk 0:00:40]}
32. Kd2 {[%clk 0:01:03.3]} 32... Qg1 {[%clk 0:00:38.1]} 33. b3 {[%clk
0:00:46.4]} 33... Rh2 {[%clk 0:00:26.6]} 34. c4 {[%clk 0:00:45.2]} 34... Qa1
{[%clk 0:00:24.7]} 35. Ke3 {[%clk 0:00:39.1]} 35... Qc3+ {[%clk 0:00:22.4]} 36.
Kf4 {[%clk 0:00:38.4]} 36... Qxd4 {[%clk 0:00:18.5]} 37. Kg3 {[%clk 0:00:35.7]}
37... Rh7 {[%clk 0:00:15.2]} 38. Rxf7 {[%clk 0:00:34.6]} 38... Qxe5+ {[%clk
0:00:13.6]} 39. Qf4 {[%clk 0:00:34.4]} 39... Qc3+ {[%clk 0:00:13.4]} 40. Qf3
{[%clk 0:00:29.9]} 40... Qe5+ {[%clk 0:00:11.2]} 41. Qf4 {[%clk 0:00:20]} 41...
Qc3+ {[%clk 0:00:07.7]} 42. Kg2 {[%clk 0:00:19.9]} 42... Rxf7 {[%clk 0:00:05.3]}
43. Qxf7 {[%clk 0:00:19.2]} 43... Qe5 {[%clk 0:00:05.3]} 44. Qf3 {[%clk
0:00:17.7]} 44... Bb7 {[%clk 0:00:04.2]} 45. Qg3 {[%clk 0:00:17.3]} 45... Bxe4+
{[%clk 0:00:04.2]} 46. Nxe4 {[%clk 0:00:17.1]} 46... Qxe4+ {[%clk 0:00:04.2]}
47. Qf3 {[%clk 0:00:17.4]} 47... Qc2+ {[%clk 0:00:04.3]} 48. Kg3 {[%clk
0:00:17.6]} 48... Kd7 {[%clk 0:00:03.9]} 49. g5 {[%clk 0:00:16.4]} 49... Qg6
{[%clk 0:00:03.4]} 50. Kg4 {[%clk 0:00:16]} 50... Ke7 {[%clk 0:00:03.5]} 51. Qf4
{[%clk 0:00:15]} 51... Kd7 {[%clk 0:00:02.7]} 52. Qf6 {[%clk 0:00:14.5]} 52...
Qe4+ {[%clk 0:00:02.8]} 53. Kh5 {[%clk 0:00:14.8]} 53... Qh7+ {[%clk 0:00:02.8]}
54. Kg4 {[%clk 0:00:14.5]} 54... Qe4+ {[%clk 0:00:02.8]} 55. Kg3 {[%clk
0:00:14.6]} 55... Qe3+ {[%clk 0:00:02.9]} 56. Kg4 {[%clk 0:00:14.9]} 56... Qe4+
{[%clk 0:00:03]} 1/2-1/2

[Event "Late-Titled-Tuesday-Blitz-February-13-2024"]
[Site "Chess.com"]
[Date "2024.02.13"]
[Round "4"]
[White "Dubs123"]
[Black "cristianserban1"]
[Result "1-0"]
[WhiteElo "2340"]
[BlackElo "2501"]
[TimeControl "180+1"]
[EndTime "14:39:21 PST"]
[Termination "Dubs123 won by checkmate"]

1. e4 {[%clk 0:03:00.9]} 1... g6 {[%clk 0:03:00.9]} 2. d4 {[%clk 0:02:53.6]}
2... Bg7 {[%clk 0:03:00.9]} 3. Nc3 {[%clk 0:02:53.3]} 3... a6 {[%clk 0:02:58.8]}
4. f4 {[%clk 0:02:52.8]} 4... d5 {[%clk 0:02:58.2]} 5. e5 {[%clk 0:02:48.5]}
5... h5 {[%clk 0:02:56.3]} 6. Nf3 {[%clk 0:02:48.1]} 6... Bg4 {[%clk 0:02:54.9]}
7. Be2 {[%clk 0:02:47.4]} 7... e6 {[%clk 0:02:55.1]} 8. O-O {[%clk 0:02:45.3]}
8... Ne7 {[%clk 0:02:52.6]} 9. Ng5 {[%clk 0:02:41.6]} 9... Bxe2 {[%clk
0:02:51.4]} 10. Nxe2 {[%clk 0:02:38.5]} 10... Nd7 {[%clk 0:02:51.1]} 11. b3
{[%clk 0:02:34.9]} 11... c5 {[%clk 0:02:51.1]} 12. dxc5 {[%clk 0:02:30.6]} 12...
Nc6 {[%clk 0:02:22.1]} 13. Nd4 {[%clk 0:02:15.8]} 13... Bf8 {[%clk 0:02:05.2]}
14. Ndxe6 {[%clk 0:02:03.3]} 14... fxe6 {[%clk 0:02:04.9]} 15. Nxe6 {[%clk
0:02:03.7]} 15... Qc8 {[%clk 0:02:01.9]} 16. Qxd5 {[%clk 0:01:59.8]} 16... Ne7
{[%clk 0:01:59.7]} 17. Qd6 {[%clk 0:01:40.7]} 17... Nf5 {[%clk 0:01:48.1]} 18.
Nc7+ {[%clk 0:01:38]} 18... Kd8 {[%clk 0:01:48.4]} 19. Ne6+ {[%clk 0:01:33.1]}
19... Ke8 {[%clk 0:01:45.9]} 20. Nc7+ {[%clk 0:01:21.9]} 20... Kf7 {[%clk
0:01:39.7]} 21. e6+ {[%clk 0:01:11.6]} 21... Kg8 {[%clk 0:01:37.4]} 22. Qxd7
{[%clk 0:01:09.9]} 22... Bxc5+ {[%clk 0:01:31]} 23. Kh1 {[%clk 0:01:09.6]} 23...
Qxd7 {[%clk 0:01:27.6]} 24. exd7 {[%clk 0:01:10.5]} 24... h4 {[%clk 0:01:28.3]}
25. Bb2 {[%clk 0:00:23.7]} 25... Rh7 {[%clk 0:01:28]} 26. h3 {[%clk 0:00:13.4]}
26... Ng3+ {[%clk 0:01:28.1]} 27. Kh2 {[%clk 0:00:13.7]} 27... Nxf1+ {[%clk
0:01:28.6]} 28. Rxf1 {[%clk 0:00:14]} 28... Rd8 {[%clk 0:01:29.5]} 29. Ne6
{[%clk 0:00:13.1]} 29... Rdxd7 {[%clk 0:01:20]} 30. Nxc5 {[%clk 0:00:13.5]}
30... Rd2 {[%clk 0:01:20.2]} 31. Ne4 {[%clk 0:00:14]} 31... Rxc2 {[%clk
0:01:18.2]} 32. Nf6+ {[%clk 0:00:14.5]} 32... Kg7 {[%clk 0:01:18.4]} 33. Nxh7+
{[%clk 0:00:15]} 33... Rxb2 {[%clk 0:01:19]} 34. Ng5 {[%clk 0:00:15.3]} 34...
Rxa2 {[%clk 0:01:19.7]} 35. Rb1 {[%clk 0:00:14.8]} 35... b5 {[%clk 0:01:20]} 36.
Nf3 {[%clk 0:00:13.2]} 36... Rf2 {[%clk 0:01:18.9]} 37. Nxh4 {[%clk 0:00:12.7]}
37... Rxf4 {[%clk 0:01:19.1]} 38. Nf3 {[%clk 0:00:13.5]} 38... Rb4 {[%clk
0:01:19.7]} 39. Ne1 {[%clk 0:00:12.4]} 39... a5 {[%clk 0:01:19.6]} 40. Nc2
{[%clk 0:00:12.7]} 40... Re4 {[%clk 0:01:19.6]} 41. Na3 {[%clk 0:00:13]} 41...
Rb4 {[%clk 0:01:18.7]} 42. Nc2 {[%clk 0:00:12.5]} 42... Re4 {[%clk 0:01:18.9]}
43. Kg3 {[%clk 0:00:12.5]} 43... Kh6 {[%clk 0:01:16.2]} 44. Kf3 {[%clk
0:00:12.8]} 44... Re5 {[%clk 0:01:14.9]} 45. Nd4 {[%clk 0:00:12.6]} 45... Rd5
{[%clk 0:01:14.7]} 46. Ke4 {[%clk 0:00:12.8]} 46... Rc5 {[%clk 0:01:12.8]} 47.
g4 {[%clk 0:00:12.5]} 47... Kg5 {[%clk 0:01:12.4]} 48. Nf3+ {[%clk 0:00:12.4]}
48... Kh6 {[%clk 0:01:12]} 49. h4 {[%clk 0:00:12.5]} 49... Rc3 {[%clk
0:01:04.3]} 50. Nd4 {[%clk 0:00:10.8]} 50... b4 {[%clk 0:01:01.5]} 51. Rf1
{[%clk 0:00:09.4]} 51... Rh3 {[%clk 0:01:01.8]} 52. h5 {[%clk 0:00:07.8]} 52...
gxh5 {[%clk 0:01:01.3]} 53. gxh5 {[%clk 0:00:08.1]} 53... Rxh5 {[%clk
0:01:00.7]} 54. Rf5 {[%clk 0:00:08.6]} 54... Rh4+ {[%clk 0:00:50.2]} 55. Kd5
{[%clk 0:00:08.8]} 55... Kg6 {[%clk 0:00:44.9]} 56. Re5 {[%clk 0:00:08]} 56...
Kf6 {[%clk 0:00:42.8]} 57. Re6+ {[%clk 0:00:08.5]} 57... Kf7 {[%clk 0:00:41.8]}
58. Ra6 {[%clk 0:00:09]} 58... Rh5+ {[%clk 0:00:41.5]} 59. Kc4 {[%clk
0:00:09.6]} 59... Ke7 {[%clk 0:00:41.7]} 60. Nc6+ {[%clk 0:00:09.9]} 60... Kd7
{[%clk 0:00:42]} 61. Nxa5 {[%clk 0:00:10.4]} 61... Rh4+ {[%clk 0:00:42.3]} 62.
Kb5 {[%clk 0:00:10.4]} 62... Kc7 {[%clk 0:00:42.4]} 63. Rc6+ {[%clk 0:00:10]}
63... Kb8 {[%clk 0:00:41]} 64. Rc4 {[%clk 0:00:10.9]} 64... Rh5+ {[%clk
0:00:41.4]} 65. Kxb4 {[%clk 0:00:11]} 65... Ka7 {[%clk 0:00:41.9]} 66. Nc6+
{[%clk 0:00:11.4]} 66... Kb6 {[%clk 0:00:42.2]} 67. Nd4 {[%clk 0:00:12.3]} 67...
Rh1 {[%clk 0:00:41.8]} 68. Rc6+ {[%clk 0:00:12.4]} 68... Kb7 {[%clk 0:00:42.3]}
69. Rg6 {[%clk 0:00:12.9]} 69... Rh4 {[%clk 0:00:42.8]} 70. Kc4 {[%clk
0:00:12.8]} 70... Rh1 {[%clk 0:00:43.3]} 71. b4 {[%clk 0:00:13]} 71... Rc1+
{[%clk 0:00:44]} 72. Kb5 {[%clk 0:00:13.6]} 72... Rh1 {[%clk 0:00:43.7]} 73.
Rg7+ {[%clk 0:00:13.6]} 73... Kb8 {[%clk 0:00:44.6]} 74. Kc5 {[%clk 0:00:13.3]}
74... Rh5+ {[%clk 0:00:44.8]} 75. Kb6 {[%clk 0:00:13]} 75... Rh6+ {[%clk
0:00:45.3]} 76. Nc6+ {[%clk 0:00:13.3]} 76... Kc8 {[%clk 0:00:46]} 77. Rc7#
{[%clk 0:00:12.1]} 1-0

[Event "Late-Titled-Tuesday-Blitz-February-13-2024"]
[Site "Chess.com"]
[Date "2024.02.13"]
[Round "4"]
[White "verrbaa"]
[Black "Lucas_Tomiello"]
[Result "1-0"]
[WhiteElo "2507"]
[BlackElo "2689"]
[TimeControl "180+1"]
[EndTime "14:39:24 PST"]
[Termination "verrbaa won by checkmate"]

1. e4 {[%clk 0:03:00.9]} 1... c5 {[%clk 0:02:58.2]} 2. Nf3 {[%clk 0:03:00.7]}
2... d6 {[%clk 0:02:58.8]} 3. d4 {[%clk 0:03:00.9]} 3... cxd4 {[%clk 0:02:59.7]}
4. Nxd4 {[%clk 0:03:01.5]} 4... Nf6 {[%clk 0:03:00.4]} 5. Nc3 {[%clk 0:03:02]}
5... a6 {[%clk 0:03:01]} 6. Be2 {[%clk 0:03:01.7]} 6... e5 {[%clk 0:02:59.2]} 7.
Nf3 {[%clk 0:03:01.1]} 7... h6 {[%clk 0:02:55.7]} 8. Nd2 {[%clk 0:03:00.8]} 8...
Be7 {[%clk 0:02:55.4]} 9. Nc4 {[%clk 0:03:00.7]} 9... Be6 {[%clk 0:02:51]} 10.
Ne3 {[%clk 0:02:48.4]} 10... Nc6 {[%clk 0:02:36.3]} 11. O-O {[%clk 0:02:44.3]}
11... O-O {[%clk 0:02:32.1]} 12. Re1 {[%clk 0:02:41.4]} 12... Rc8 {[%clk
0:02:12.9]} 13. Bd3 {[%clk 0:02:11.3]} 13... Nb4 {[%clk 0:01:51.3]} 14. Bf1
{[%clk 0:01:50.7]} 14... Qc7 {[%clk 0:00:59.4]} 15. a3 {[%clk 0:01:49.6]} 15...
Nc6 {[%clk 0:00:59.7]} 16. Ncd5 {[%clk 0:01:41.2]} 16... Bxd5 {[%clk 0:00:58]}
17. exd5 {[%clk 0:01:42.1]} 17... Nb8 {[%clk 0:00:51.9]} 18. c4 {[%clk
0:01:41.7]} 18... g6 {[%clk 0:00:48.6]} 19. b4 {[%clk 0:01:35.5]} 19... a5
{[%clk 0:00:46.3]} 20. Bb2 {[%clk 0:01:32.3]} 20... Na6 {[%clk 0:00:44.3]} 21.
Qb3 {[%clk 0:01:17.3]} 21... Nd7 {[%clk 0:00:34.5]} 22. f4 {[%clk 0:01:08.4]}
22... exf4 {[%clk 0:00:25.4]} 23. Ng4 {[%clk 0:01:05.1]} 23... Ne5 {[%clk
0:00:19.7]} 24. Nxe5 {[%clk 0:01:01.9]} 24... dxe5 {[%clk 0:00:20]} 25. c5
{[%clk 0:01:02.5]} 25... axb4 {[%clk 0:00:17.6]} 26. axb4 {[%clk 0:01:00.2]}
26... Nxc5 {[%clk 0:00:18.1]} 27. bxc5 {[%clk 0:01:00]} 27... Bxc5+ {[%clk
0:00:19]} 28. Kh1 {[%clk 0:01:00.1]} 28... Bd6 {[%clk 0:00:18.8]} 29. Ra7 {[%clk
0:00:32.3]} 29... Qc2 {[%clk 0:00:17.9]} 30. Rxb7 {[%clk 0:00:31.2]} 30... Qxb3
{[%clk 0:00:15.5]} 31. Rxb3 {[%clk 0:00:32.1]} 31... Rb8 {[%clk 0:00:15.4]} 32.
Rxb8 {[%clk 0:00:29.7]} 32... Rxb8 {[%clk 0:00:16.3]} 33. Bxe5 {[%clk
0:00:28.4]} 33... Re8 {[%clk 0:00:07.4]} 34. Bc3 {[%clk 0:00:28.3]} 34... Rc8
{[%clk 0:00:08]} 35. Bf6 {[%clk 0:00:19.4]} 35... g5 {[%clk 0:00:06.2]} 36. h3
{[%clk 0:00:19]} 36... Bf8 {[%clk 0:00:04.4]} 37. Bd3 {[%clk 0:00:18.5]} 37...
Bg7 {[%clk 0:00:04.9]} 38. Bxg7 {[%clk 0:00:18.1]} 38... Kxg7 {[%clk 0:00:05.8]}
39. Bf5 {[%clk 0:00:16.4]} 39... Rd8 {[%clk 0:00:06.1]} 40. Rd1 {[%clk
0:00:15.9]} 40... Kf6 {[%clk 0:00:06.8]} 41. Bg4 {[%clk 0:00:14.7]} 41... Ke5
{[%clk 0:00:07.4]} 42. Bf3 {[%clk 0:00:14.7]} 42... f5 {[%clk 0:00:07.1]} 43.
Re1+ {[%clk 0:00:13.7]} 43... Kd4 {[%clk 0:00:06.7]} 44. Re6 {[%clk 0:00:13.9]}
44... Rg8 {[%clk 0:00:05.1]} 45. d6 {[%clk 0:00:09.6]} 45... g4 {[%clk
0:00:05.6]} 46. hxg4 {[%clk 0:00:09.1]} 46... fxg4 {[%clk 0:00:06.5]} 47. Bc6
{[%clk 0:00:09]} 47... Rc8 {[%clk 0:00:03.8]} 48. d7 {[%clk 0:00:08.6]} 48...
Rb8 {[%clk 0:00:03.7]} 49. Re8 {[%clk 0:00:05.2]} 49... Rb1+ {[%clk 0:00:02.8]}
50. Kh2 {[%clk 0:00:05.4]} 50... g3+ {[%clk 0:00:03.6]} 51. Kh3 {[%clk
0:00:05.6]} 51... h5 {[%clk 0:00:02.4]} 52. Kh4 {[%clk 0:00:05.9]} 52... Kc5
{[%clk 0:00:03.3]} 53. d8=Q {[%clk 0:00:05.5]} 53... Rh1+ {[%clk 0:00:03.4]} 54.
Kg5 {[%clk 0:00:05.4]} 54... h4 {[%clk 0:00:04.3]} 55. Re5+ {[%clk 0:00:05.2]}
55... Kc4 {[%clk 0:00:05.2]} 56. Qd5+ {[%clk 0:00:05.2]} 56... Kc3 {[%clk
0:00:06.1]} 57. Qc5+ {[%clk 0:00:04.8]} 57... Kd3 {[%clk 0:00:06.5]} 58. Rd5+
{[%clk 0:00:05]} 58... Ke2 {[%clk 0:00:06.1]} 59. Qc2+ {[%clk 0:00:05]} 59...
Kf1 {[%clk 0:00:07]} 60. Rd1# {[%clk 0:00:05]} 1-0

[Event "Late-Titled-Tuesday-Blitz-February-13-2024"]
[Site "Chess.com"]
[Date "2024.02.13"]
[Round "4"]
[White "Lion-Al-Messi"]
[Black "CaspiIsrael"]
[Result "0-1"]
[WhiteElo "2564"]
[BlackElo "2817"]
[TimeControl "180+1"]
[EndTime "14:39:25 PST"]
[Termination "CaspiIsrael won by resignation"]

1. e4 {[%clk 0:03:00.9]} 1... d5 {[%clk 0:02:59.2]} 2. e5 {[%clk 0:03:00.2]}
2... Bf5 {[%clk 0:02:58.4]} 3. Nf3 {[%clk 0:02:59.5]} 3... e6 {[%clk 0:02:58.6]}
4. d4 {[%clk 0:02:57.2]} 4... c5 {[%clk 0:02:51.8]} 5. Bb5+ {[%clk 0:02:56.4]}
5... Nc6 {[%clk 0:02:50.1]} 6. O-O {[%clk 0:02:57]} 6... Ne7 {[%clk 0:02:41]} 7.
dxc5 {[%clk 0:02:55]} 7... a6 {[%clk 0:02:40.3]} 8. Bd3 {[%clk 0:02:52.1]} 8...
Bg4 {[%clk 0:02:28.4]} 9. Re1 {[%clk 0:02:52]} 9... Ng6 {[%clk 0:02:26.5]} 10.
Bxg6 {[%clk 0:02:26.5]} 10... hxg6 {[%clk 0:02:27.4]} 11. h3 {[%clk 0:02:26.4]}
11... Bxf3 {[%clk 0:02:24.7]} 12. Qxf3 {[%clk 0:02:27.3]} 12... Bxc5 {[%clk
0:02:24.7]} 13. c3 {[%clk 0:02:26.5]} 13... Qb6 {[%clk 0:02:09]} 14. b4 {[%clk
0:02:26.4]} 14... Be7 {[%clk 0:02:03.6]} 15. Be3 {[%clk 0:02:26.5]} 15... Qc7
{[%clk 0:02:02.5]} 16. Bf4 {[%clk 0:02:25.9]} 16... Rh5 {[%clk 0:01:58.7]} 17.
Nd2 {[%clk 0:02:24.6]} 17... O-O-O {[%clk 0:01:57.2]} 18. a4 {[%clk 0:02:20.8]}
18... Nxe5 {[%clk 0:01:50]} 19. Bxe5 {[%clk 0:02:20.4]} 19... Rxe5 {[%clk
0:01:48.5]} 20. Qxf7 {[%clk 0:02:13.5]} 20... Bf6 {[%clk 0:01:40]} 21. Qxc7+
{[%clk 0:02:05.6]} 21... Kxc7 {[%clk 0:01:39.7]} 22. Rxe5 {[%clk 0:01:59]} 22...
Bxe5 {[%clk 0:01:39.5]} 23. Re1 {[%clk 0:01:28.6]} 23... Bf6 {[%clk 0:01:39.4]}
24. Nf3 {[%clk 0:01:12.9]} 24... Kd6 {[%clk 0:01:36.5]} 25. Nd4 {[%clk
0:00:52.3]} 25... e5 {[%clk 0:01:34]} 26. Nb3 {[%clk 0:00:47.8]} 26... Rc8
{[%clk 0:01:26.7]} 27. Nc5 {[%clk 0:00:47.2]} 27... b6 {[%clk 0:01:26.9]} 28.
Nxa6 {[%clk 0:00:47.3]} 28... Rxc3 {[%clk 0:01:26.8]} 29. Ra1 {[%clk 0:00:28.3]}
29... e4 {[%clk 0:01:23.3]} 30. Kf1 {[%clk 0:00:22]} 30... Rc2 {[%clk
0:01:19.7]} 31. Rd1 {[%clk 0:00:12.4]} 31... d4 {[%clk 0:01:10.8]} 32. a5 {[%clk
0:00:05.9]} 32... bxa5 {[%clk 0:01:01.5]} 33. bxa5 {[%clk 0:00:06.8]} 33... d3
{[%clk 0:01:01.8]} 34. Nb4 {[%clk 0:00:06.9]} 34... Rb2 {[%clk 0:00:58.7]} 35.
Nxd3 {[%clk 0:00:07.1]} 35... exd3 {[%clk 0:00:58.7]} 36. Rxd3+ {[%clk 0:00:08]}
36... Ke6 {[%clk 0:00:57.4]} 37. Ra3 {[%clk 0:00:07.1]} 37... Bd4 {[%clk
0:00:56.5]} 38. Ra4 {[%clk 0:00:03]} 38... Rxf2+ {[%clk 0:00:53.2]} 39. Ke1
{[%clk 0:00:03.4]} 39... Rf4 {[%clk 0:00:43.5]} 40. Ke2 {[%clk 0:00:02.9]} 40...
Be3 {[%clk 0:00:30.7]} 41. Rxf4 {[%clk 0:00:02.3]} 41... Bxf4 {[%clk 0:00:30.6]}
42. Kf3 {[%clk 0:00:02.8]} 42... Bb8 {[%clk 0:00:23.1]} 43. a6 {[%clk
0:00:03.7]} 43... Kf5 {[%clk 0:00:21.4]} 44. g3 {[%clk 0:00:03.2]} 44... g5
{[%clk 0:00:20.1]} 45. g4+ {[%clk 0:00:01.6]} 45... Ke5 {[%clk 0:00:19.9]} 46.
Ke3 {[%clk 0:00:02.1]} 46... Ba7+ {[%clk 0:00:20]} 47. Kf3 {[%clk 0:00:02.2]}
47... Kd4 {[%clk 0:00:20.2]} 48. Kg3 {[%clk 0:00:02.7]} 48... Bb8+ {[%clk
0:00:19.4]} 49. Kf3 {[%clk 0:00:02.7]} 49... Kd3 {[%clk 0:00:19.5]} 50. Kf2
{[%clk 0:00:02.6]} 50... Ke4 {[%clk 0:00:17.5]} 51. Kg2 {[%clk 0:00:02.9]} 51...
Ke3 {[%clk 0:00:17.3]} 52. h4 {[%clk 0:00:02.1]} 52... gxh4 {[%clk 0:00:17.1]}
53. g5 {[%clk 0:00:02.5]} 53... Kf4 {[%clk 0:00:16.5]} 54. g6 {[%clk 0:00:02.9]}
54... Kg5 {[%clk 0:00:15.5]} 55. Kh3 {[%clk 0:00:03.6]} 55... Kxg6 {[%clk
0:00:14.3]} 56. Kxh4 {[%clk 0:00:04.2]} 56... Kf5 {[%clk 0:00:14.7]} 57. Kh3
{[%clk 0:00:04.4]} 57... Ba7 {[%clk 0:00:14.7]} 58. Kg3 {[%clk 0:00:04.6]} 58...
g5 {[%clk 0:00:15]} 59. Kf3 {[%clk 0:00:05]} 59... g4+ {[%clk 0:00:15.3]} 60.
Kg3 {[%clk 0:00:05.5]} 60... Kg5 {[%clk 0:00:15.8]} 0-1

[Event "Late-Titled-Tuesday-Blitz-February-13-2024"]
[Site "Chess.com"]
[Date "2024.02.13"]
[Round "4"]
[White "AradNazari"]
[Black "Fandorine"]
[Result "1/2-1/2"]
[WhiteElo "2774"]
[BlackElo "2950"]
[TimeControl "180+1"]
[EndTime "14:39:26 PST"]
[Termination "Game drawn by repetition"]

1. e4 {[%clk 0:02:13.2]} 1... e5 {[%clk 0:02:52.6]} 2. f4 {[%clk 0:02:12.7]}
2... d5 {[%clk 0:02:32.2]} 3. exd5 {[%clk 0:02:09.7]} 3... e4 {[%clk 0:02:32.1]}
4. d3 {[%clk 0:02:09.5]} 4... Nf6 {[%clk 0:02:27.8]} 5. dxe4 {[%clk 0:02:09.9]}
5... Nxe4 {[%clk 0:02:27.1]} 6. Nf3 {[%clk 0:02:10.4]} 6... Bc5 {[%clk
0:02:14.8]} 7. Qe2 {[%clk 0:02:10.6]} 7... Qe7 {[%clk 0:02:11.8]} 8. Be3 {[%clk
0:01:42.5]} 8... Na6 {[%clk 0:01:46.7]} 9. Bxc5 {[%clk 0:01:28.6]} 9... Naxc5
{[%clk 0:01:45.3]} 10. Nbd2 {[%clk 0:01:27.4]} 10... Bg4 {[%clk 0:01:37.1]} 11.
Nxe4 {[%clk 0:01:10.9]} 11... Nxe4 {[%clk 0:01:34.3]} 12. O-O-O {[%clk
0:01:02.1]} 12... Bxf3 {[%clk 0:01:19.6]} 13. gxf3 {[%clk 0:00:37.4]} 13... Nd6
{[%clk 0:01:17.3]} 14. Qe5 {[%clk 0:00:36]} 14... Kf8 {[%clk 0:00:43]} 15. Rg1
{[%clk 0:00:26.5]} 15... Rg8 {[%clk 0:00:39.5]} 16. Bd3 {[%clk 0:00:25.1]} 16...
g6 {[%clk 0:00:28.1]} 17. Rde1 {[%clk 0:00:20]} 17... Re8 {[%clk 0:00:26.5]} 18.
Qc3 {[%clk 0:00:15.2]} 18... Qh4 {[%clk 0:00:26.5]} 19. Rxe8+ {[%clk 0:00:14.2]}
19... Nxe8 {[%clk 0:00:27.4]} 20. Qc5+ {[%clk 0:00:10.2]} 20... Kg7 {[%clk
0:00:23.7]} 21. Qd4+ {[%clk 0:00:09.9]} 21... Qf6 {[%clk 0:00:21.4]} 22. Qe5
{[%clk 0:00:09.5]} 22... Nd6 {[%clk 0:00:20.1]} 23. Re1 {[%clk 0:00:09.4]} 23...
Re8 {[%clk 0:00:16.8]} 24. Qxf6+ {[%clk 0:00:09.7]} 24... Kxf6 {[%clk
0:00:17.4]} 25. Rxe8 {[%clk 0:00:10.6]} 25... Nxe8 {[%clk 0:00:18.3]} 26. Kd2
{[%clk 0:00:10.6]} 26... a5 {[%clk 0:00:16.3]} 27. a3 {[%clk 0:00:09.5]} 27...
Ke7 {[%clk 0:00:15.8]} 28. b4 {[%clk 0:00:09.5]} 28... axb4 {[%clk 0:00:15.2]}
29. axb4 {[%clk 0:00:08.8]} 29... Nf6 {[%clk 0:00:08.3]} 30. c4 {[%clk
0:00:04.6]} 30... b5 {[%clk 0:00:08.8]} 31. Ke3 {[%clk 0:00:04.4]} 31... bxc4
{[%clk 0:00:09.1]} 32. Bxc4 {[%clk 0:00:05.3]} 32... Kd6 {[%clk 0:00:09.7]} 33.
Kd4 {[%clk 0:00:05.4]} 33... Nh5 {[%clk 0:00:09.5]} 34. Ke3 {[%clk 0:00:05.9]}
34... Ng7 {[%clk 0:00:08.7]} 35. Ke4 {[%clk 0:00:05]} 35... Nf5 {[%clk
0:00:08.8]} 36. Bf1 {[%clk 0:00:04.3]} 36... Ne7 {[%clk 0:00:08.6]} 37. Bc4
{[%clk 0:00:03.6]} 37... h6 {[%clk 0:00:08.1]} 38. Bb3 {[%clk 0:00:03.3]} 38...
Ng8 {[%clk 0:00:08.1]} 39. Bc4 {[%clk 0:00:03.6]} 39... Nf6+ {[%clk 0:00:08.2]}
40. Kd4 {[%clk 0:00:04.2]} 40... Nh5 {[%clk 0:00:08.9]} 41. Ke4 {[%clk
0:00:04.2]} 41... Ng7 {[%clk 0:00:06.6]} 42. Bb3 {[%clk 0:00:04.4]} 42... Nf5
{[%clk 0:00:06.6]} 43. Bc4 {[%clk 0:00:04.7]} 43... Ne7 {[%clk 0:00:04.8]} 44.
Bb3 {[%clk 0:00:05]} 44... Nc8 {[%clk 0:00:04.7]} 45. Kd4 {[%clk 0:00:05.1]}
45... Nb6 {[%clk 0:00:03.2]} 46. Ba2 {[%clk 0:00:04.7]} 46... Nd7 {[%clk
0:00:03.7]} 47. Bb3 {[%clk 0:00:04.8]} 47... Nf6 {[%clk 0:00:04.3]} 48. Ba2
{[%clk 0:00:05.3]} 48... Nh5 {[%clk 0:00:04.4]} 49. Ke4 {[%clk 0:00:04.9]} 49...
f5+ {[%clk 0:00:04.8]} 50. Ke3 {[%clk 0:00:04.9]} 50... Nf6 {[%clk 0:00:05.2]}
51. Kd4 {[%clk 0:00:04.2]} 51... Nh5 {[%clk 0:00:05.4]} 52. Ke3 {[%clk
0:00:04.3]} 52... Nf6 {[%clk 0:00:06]} 53. Kd4 {[%clk 0:00:04.2]} 53... Nh5
{[%clk 0:00:05.8]} 54. Ke3 {[%clk 0:00:04.8]} 1/2-1/2